[Event "Late-Titled-Tuesday-Blitz-June-04-2024"]
[Site "Chess.com"]
[Date "2024.06.04"]
[Round "7"]
[White "Maus7"]
[Black "Harry_Rakkel"]
[Result "0-1"]
[WhiteElo "2559"]
[BlackElo "2698"]
[TimeControl "180+1"]
[EndTime "15:15:44 PDT"]
[Termination "Harry_Rakkel won by resignation"]

1. e4 {[%clk 0:03:00.9]} 1... c5 {[%clk 0:02:59.5]} 2. Nf3 {[%clk 0:03:00.6]}
2... e6 {[%clk 0:02:57.5]} 3. d4 {[%clk 0:03:00.5]} 3... cxd4 {[%clk 0:02:57.5]}
4. Nxd4 {[%clk 0:03:01.4]} 4... Nc6 {[%clk 0:02:57.3]} 5. Nc3 {[%clk 0:03:01.1]}
5... Qc7 {[%clk 0:02:56.9]} 6. Be2 {[%clk 0:02:45.4]} 6... a6 {[%clk 0:02:54.5]}
7. Nxc6 {[%clk 0:02:42.7]} 7... bxc6 {[%clk 0:02:48.4]} 8. Qd3 {[%clk
0:02:41.4]} 8... Nf6 {[%clk 0:02:41.1]} 9. Qg3 {[%clk 0:02:24.4]} 9... Qxg3
{[%clk 0:02:38.8]} 10. hxg3 {[%clk 0:02:24.9]} 10... d5 {[%clk 0:02:37.9]} 11.
g4 {[%clk 0:01:44.3]} 11... Bb4 {[%clk 0:02:33.6]} 12. Bd2 {[%clk 0:01:42.5]}
12... O-O {[%clk 0:02:30.5]} 13. exd5 {[%clk 0:01:22]} 13... exd5 {[%clk
0:02:29.1]} 14. g5 {[%clk 0:01:09.8]} 14... Bxc3 {[%clk 0:02:27.4]} 15. Bxc3
{[%clk 0:01:09.6]} 15... Ne4 {[%clk 0:02:26.6]} 16. Rh5 {[%clk 0:00:44.4]} 16...
Re8 {[%clk 0:02:19.7]} 17. Bd4 {[%clk 0:00:37.5]} 17... c5 {[%clk 0:02:09.6]}
18. Be3 {[%clk 0:00:37.7]} 18... d4 {[%clk 0:02:08.8]} 19. Bf4 {[%clk
0:00:37.8]} 19... Nc3 {[%clk 0:02:02.8]} 20. bxc3 {[%clk 0:00:28.8]} 20... Bg4
{[%clk 0:02:03.2]} 21. Rh4 {[%clk 0:00:20.1]} 21... Bxe2 {[%clk 0:02:02.6]} 22.
Kd2 {[%clk 0:00:20]} 22... Rad8 {[%clk 0:01:59]} 23. Re1 {[%clk 0:00:18.7]}
23... d3 {[%clk 0:01:40.8]} 24. Bc7 {[%clk 0:00:17.6]} 24... Rc8 {[%clk
0:01:36.9]} 25. cxd3 {[%clk 0:00:17.5]} 25... Rxc7 {[%clk 0:01:32.5]} 26. Rxe2
{[%clk 0:00:17.8]} 26... Rb8 {[%clk 0:01:33]} 27. Rhe4 {[%clk 0:00:17.9]} 27...
Rcc8 {[%clk 0:01:31]} 28. Ra4 {[%clk 0:00:16.4]} 28... Rc6 {[%clk 0:01:28.4]}
29. Kc2 {[%clk 0:00:16.5]} 29... g6 {[%clk 0:01:28.4]} 30. f4 {[%clk 0:00:15.6]}
30... Rcb6 {[%clk 0:01:27.8]} 31. d4 {[%clk 0:00:15.4]} 31... cxd4 {[%clk
0:01:25.3]} 32. Rxd4 {[%clk 0:00:14.8]} 32... Rb1 {[%clk 0:01:24.5]} 33. Rdd2
{[%clk 0:00:13.7]} 33... Rf1 {[%clk 0:01:23.4]} 34. Rf2 {[%clk 0:00:13.9]} 34...
Ra1 {[%clk 0:01:21.6]} 35. Kd3 {[%clk 0:00:13.7]} 35... Rc8 {[%clk 0:01:20.3]}
36. Rc2 {[%clk 0:00:13.3]} 36... Rd1+ {[%clk 0:01:19.6]} 37. Rfd2 {[%clk
0:00:12.3]} 37... Rf1 {[%clk 0:01:20.1]} 38. Ke3 {[%clk 0:00:12.4]} 38... Re8+
{[%clk 0:01:19.2]} 39. Kd3 {[%clk 0:00:11]} 39... Rxf4 {[%clk 0:01:20.1]} 40. c4
{[%clk 0:00:11.2]} 40... Rd8+ {[%clk 0:01:19.1]} 41. Kc3 {[%clk 0:00:11.1]}
41... Rc8 {[%clk 0:01:19]} 42. Kb4 {[%clk 0:00:11.5]} 42... Rg4 {[%clk
0:01:18.4]} 43. Rd5 {[%clk 0:00:11.2]} 43... Kg7 {[%clk 0:01:14.9]} 44. Rc5
{[%clk 0:00:11.4]} 44... Rb8+ {[%clk 0:01:14.1]} 45. Ka5 {[%clk 0:00:11.6]}
45... Rg3 {[%clk 0:01:13.8]} 46. Ka4 {[%clk 0:00:11.1]} 46... Re3 {[%clk
0:01:03.5]} 47. Ra5 {[%clk 0:00:11.3]} 47... Rb6 {[%clk 0:00:58.4]} 48. c5
{[%clk 0:00:11.6]} 48... Rc6 {[%clk 0:00:58.8]} 49. Rb2 {[%clk 0:00:11.2]} 49...
Re5 {[%clk 0:00:58.2]} 50. Rb6 {[%clk 0:00:11.4]} 50... Rcxc5 {[%clk 0:00:57.9]}
51. Rxc5 {[%clk 0:00:10.9]} 51... Rxc5 {[%clk 0:00:58.8]} 52. Rxa6 {[%clk
0:00:11]} 52... Rxg5 {[%clk 0:00:58.7]} 53. Kb3 {[%clk 0:00:11.3]} 53... Rg3+
{[%clk 0:00:58.3]} 54. Kb4 {[%clk 0:00:10.9]} 54... Rxg2 {[%clk 0:00:59.2]} 55.
a4 {[%clk 0:00:11.6]} 55... h5 {[%clk 0:00:59.2]} 56. Rd6 {[%clk 0:00:11.3]}
56... h4 {[%clk 0:00:59.3]} 57. a5 {[%clk 0:00:11.9]} 57... h3 {[%clk
0:00:59.2]} 58. Rd1 {[%clk 0:00:11.9]} 58... g5 {[%clk 0:00:57.5]} 59. a6 {[%clk
0:00:11.7]} 59... Ra2 {[%clk 0:00:57.5]} 0-1

[Event "Late-Titled-Tuesday-Blitz-June-04-2024"]
[Site "Chess.com"]
[Date "2024.06.04"]
[Round "7"]
[White "tactic"]
[Black "fpawn"]
[Result "0-1"]
[WhiteElo "2545"]
[BlackElo "2431"]
[TimeControl "180+1"]
[EndTime "15:15:45 PDT"]
[Termination "fpawn won on time"]

1. e4 {[%clk 0:03:00.9]} 1... c5 {[%clk 0:02:59]} 2. c3 {[%clk 0:03:01.4]} 2...
Nf6 {[%clk 0:02:58.3]} 3. e5 {[%clk 0:03:02]} 3... Nd5 {[%clk 0:02:58.6]} 4. Nf3
{[%clk 0:03:02.7]} 4... Nc6 {[%clk 0:02:58.3]} 5. Na3 {[%clk 0:03:03.2]} 5... d6
{[%clk 0:02:57.5]} 6. Bb5 {[%clk 0:03:03.9]} 6... e6 {[%clk 0:02:55.6]} 7. Nc4
{[%clk 0:03:03.8]} 7... a6 {[%clk 0:02:52]} 8. Bxc6+ {[%clk 0:03:02.6]} 8...
bxc6 {[%clk 0:02:51.7]} 9. exd6 {[%clk 0:03:03.5]} 9... Bxd6 {[%clk 0:02:51.7]}
10. d3 {[%clk 0:03:04.4]} 10... O-O {[%clk 0:02:45.5]} 11. Nxd6 {[%clk
0:03:04.1]} 11... Qxd6 {[%clk 0:02:45.3]} 12. O-O {[%clk 0:03:05]} 12... Rd8
{[%clk 0:02:41.2]} 13. Qe2 {[%clk 0:03:02.3]} 13... Nf4 {[%clk 0:02:39.6]} 14.
Bxf4 {[%clk 0:02:58.3]} 14... Qxf4 {[%clk 0:02:40.5]} 15. Qe4 {[%clk 0:02:51.1]}
15... Qd6 {[%clk 0:02:33.7]} 16. Rad1 {[%clk 0:02:20.5]} 16... f6 {[%clk
0:02:27.1]} 17. Qc4 {[%clk 0:02:06.9]} 17... Qd5 {[%clk 0:02:24.9]} 18. Qa4
{[%clk 0:01:53.1]} 18... e5 {[%clk 0:02:22]} 19. d4 {[%clk 0:01:53.4]} 19...
cxd4 {[%clk 0:02:20.7]} 20. cxd4 {[%clk 0:01:52.5]} 20... e4 {[%clk 0:02:20.7]}
21. Nd2 {[%clk 0:01:45.4]} 21... Bg4 {[%clk 0:02:05.5]} 22. Rc1 {[%clk
0:01:44.9]} 22... Be2 {[%clk 0:02:05.2]} 23. Rfe1 {[%clk 0:01:43.9]} 23... Bb5
{[%clk 0:02:05]} 24. Qb3 {[%clk 0:01:36.9]} 24... f5 {[%clk 0:02:00.4]} 25. Rc5
{[%clk 0:01:30.1]} 25... Qxb3 {[%clk 0:01:55.6]} 26. Nxb3 {[%clk 0:01:31]} 26...
g6 {[%clk 0:01:55.2]} 27. g4 {[%clk 0:01:30.7]} 27... Rd5 {[%clk 0:01:46]} 28.
gxf5 {[%clk 0:01:19.2]} 28... gxf5 {[%clk 0:01:44.9]} 29. Rc3 {[%clk 0:01:16.7]}
29... Ra7 {[%clk 0:01:39.1]} 30. Rg3+ {[%clk 0:01:07.4]} 30... Rg7 {[%clk
0:01:38.7]} 31. f3 {[%clk 0:00:51]} 31... exf3 {[%clk 0:01:30.3]} 32. Rxg7+
{[%clk 0:00:44.7]} 32... Kxg7 {[%clk 0:01:30]} 33. Kf2 {[%clk 0:00:45.6]} 33...
Be2 {[%clk 0:01:27.2]} 34. Rc1 {[%clk 0:00:32.4]} 34... Rd6 {[%clk 0:01:19.2]}
35. Rc5 {[%clk 0:00:28.6]} 35... Kf6 {[%clk 0:01:18]} 36. Rc3 {[%clk 0:00:18.6]}
36... Kg5 {[%clk 0:01:16.1]} 37. Kg3 {[%clk 0:00:16.3]} 37... f4+ {[%clk
0:01:16.3]} 38. Kf2 {[%clk 0:00:16.8]} 38... Kg4 {[%clk 0:01:05.2]} 39. Rc5
{[%clk 0:00:15.7]} 39... Rh6 {[%clk 0:01:04.7]} 40. Kg1 {[%clk 0:00:14.3]} 40...
f2+ {[%clk 0:00:54.3]} 41. Kxf2 {[%clk 0:00:14.6]} 41... Rxh2+ {[%clk
0:00:54.4]} 42. Kg1 {[%clk 0:00:15.2]} 42... Rh6 {[%clk 0:00:50.6]} 43. Nd2
{[%clk 0:00:15.1]} 43... f3 {[%clk 0:00:49.9]} 44. Ne4 {[%clk 0:00:14.3]} 44...
Kf4 {[%clk 0:00:47.8]} 45. Nf2 {[%clk 0:00:12.7]} 45... Rg6+ {[%clk 0:00:44.3]}
46. Kh1 {[%clk 0:00:13.3]} 46... Ke3 {[%clk 0:00:44.1]} 47. Nh3 {[%clk 0:00:11]}
47... f2 {[%clk 0:00:37.9]} 48. Re5+ {[%clk 0:00:11.2]} 48... Kxd4 {[%clk
0:00:38.1]} 0-1

[Event "Late-Titled-Tuesday-Blitz-June-04-2024"]
[Site "Chess.com"]
[Date "2024.06.04"]
[Round "7"]
[White "Romkachess"]
[Black "NikitaShnadrygin"]
[Result "0-1"]
[WhiteElo "2522"]
[BlackElo "2711"]
[TimeControl "180+1"]
[EndTime "15:15:51 PDT"]
[Termination "NikitaShnadrygin won on time"]

1. e4 {[%clk 0:02:58.3]} 1... c5 {[%clk 0:02:57.3]} 2. Nf3 {[%clk 0:02:51.8]}
2... e6 {[%clk 0:02:56]} 3. d4 {[%clk 0:02:47.2]} 3... cxd4 {[%clk 0:02:56.9]}
4. Nxd4 {[%clk 0:02:48.1]} 4... Nf6 {[%clk 0:02:56.8]} 5. Nc3 {[%clk 0:02:43.3]}
5... Nc6 {[%clk 0:02:56.6]} 6. Nxc6 {[%clk 0:02:27.3]} 6... bxc6 {[%clk
0:02:57.5]} 7. e5 {[%clk 0:02:25.9]} 7... Nd5 {[%clk 0:02:57.5]} 8. Ne4 {[%clk
0:02:26.6]} 8... Qc7 {[%clk 0:02:57.7]} 9. f4 {[%clk 0:02:23.7]} 9... Qb6 {[%clk
0:02:58.3]} 10. c4 {[%clk 0:02:22.2]} 10... Bb4+ {[%clk 0:02:58.9]} 11. Ke2
{[%clk 0:02:19.4]} 11... f5 {[%clk 0:02:59.5]} 12. exf6 {[%clk 0:02:17.1]} 12...
Nxf6 {[%clk 0:02:59.2]} 13. Be3 {[%clk 0:02:13.8]} 13... Qd8 {[%clk 0:02:58.2]}
14. Nd6+ {[%clk 0:02:11.5]} 14... Ke7 {[%clk 0:02:58.2]} 15. Nxc8+ {[%clk
0:02:03.6]} 15... Rxc8 {[%clk 0:02:59.1]} 16. a3 {[%clk 0:02:04.3]} 16... Ba5
{[%clk 0:02:55.9]} 17. b4 {[%clk 0:02:00]} 17... Bc7 {[%clk 0:02:52.7]} 18. g3
{[%clk 0:01:56.2]} 18... a5 {[%clk 0:02:40.3]} 19. Bg2 {[%clk 0:01:54.5]} 19...
d5 {[%clk 0:02:40.5]} 20. Bc5+ {[%clk 0:01:32.1]} 20... Bd6 {[%clk 0:02:39.7]}
21. Qd4 {[%clk 0:01:32.7]} 21... Re8 {[%clk 0:02:33.7]} 22. Rhe1 {[%clk
0:01:30.1]} 22... Kf7 {[%clk 0:02:28.9]} 23. Kf1 {[%clk 0:01:29.3]} 23... Bc7
{[%clk 0:02:04.8]} 24. Kg1 {[%clk 0:00:52.5]} 24... Ra8 {[%clk 0:01:58.9]} 25.
Bh3 {[%clk 0:00:48.2]} 25... Qd7 {[%clk 0:01:54.6]} 26. Qd3 {[%clk 0:00:46]}
26... axb4 {[%clk 0:01:49.9]} 27. axb4 {[%clk 0:00:46.2]} 27... Rxa1 {[%clk
0:01:32.6]} 28. Rxa1 {[%clk 0:00:47.1]} 28... Bb8 {[%clk 0:01:33.2]} 29. Re1
{[%clk 0:00:33.3]} 29... Qc7 {[%clk 0:01:29]} 30. Bd4 {[%clk 0:00:25.7]} 30...
Ba7 {[%clk 0:01:29]} 31. c5 {[%clk 0:00:15.5]} 31... g6 {[%clk 0:01:25.8]} 32.
Qe2 {[%clk 0:00:12.1]} 32... Qe7 {[%clk 0:01:19.9]} 33. Be5 {[%clk 0:00:09.9]}
33... Bb8 {[%clk 0:01:16.4]} 34. Bd4 {[%clk 0:00:09.4]} 34... Ne4 {[%clk
0:01:09.9]} 35. b5 {[%clk 0:00:09.4]} 35... e5 {[%clk 0:01:06.5]} 36. fxe5
{[%clk 0:00:09.4]} 36... Bxe5 {[%clk 0:01:07.4]} 37. Rf1+ {[%clk 0:00:09.8]}
37... Kg7 {[%clk 0:01:06.7]} 38. Bxe5+ {[%clk 0:00:10.2]} 38... Qxe5 {[%clk
0:01:07.6]} 39. bxc6 {[%clk 0:00:10.7]} 39... Qd4+ {[%clk 0:01:08.2]} 40. Kg2
{[%clk 0:00:08.1]} 40... Qxc5 {[%clk 0:01:07.4]} 41. Qb2+ {[%clk 0:00:08.7]}
41... d4 {[%clk 0:00:56.6]} 42. Rc1 {[%clk 0:00:08.7]} 42... Nc3 {[%clk
0:00:56.8]} 43. Bd7 {[%clk 0:00:06.1]} 43... Qd5+ {[%clk 0:00:47.8]} 44. Kh3
{[%clk 0:00:03.7]} 44... Qh5+ {[%clk 0:00:46.3]} 0-1

[Event "Late-Titled-Tuesday-Blitz-June-04-2024"]
[Site "Chess.com"]
[Date "2024.06.04"]
[Round "7"]
[White "Nemsko"]
[Black "campochess"]
[Result "0-1"]
[WhiteElo "2328"]
[BlackElo "2187"]
[TimeControl "180+1"]
[EndTime "15:15:54 PDT"]
[Termination "campochess won on time"]

1. e4 {[%clk 0:03:00.9]} 1... c5 {[%clk 0:03:00]} 2. Nf3 {[%clk 0:02:58.5]} 2...
Nc6 {[%clk 0:02:59.9]} 3. d4 {[%clk 0:02:58.2]} 3... cxd4 {[%clk 0:03:00]} 4.
Nxd4 {[%clk 0:02:59.1]} 4... e5 {[%clk 0:02:59.7]} 5. Nb5 {[%clk 0:02:58.8]}
5... a6 {[%clk 0:02:59.9]} 6. Nd6+ {[%clk 0:02:42.9]} 6... Bxd6 {[%clk
0:02:59.8]} 7. Qxd6 {[%clk 0:02:43.8]} 7... Qe7 {[%clk 0:02:59.9]} 8. Qd1 {[%clk
0:02:39.6]} 8... Nf6 {[%clk 0:02:58.9]} 9. Bd3 {[%clk 0:02:40]} 9... h6 {[%clk
0:02:57.4]} 10. O-O {[%clk 0:02:38.8]} 10... d6 {[%clk 0:02:57.4]} 11. f3 {[%clk
0:02:35]} 11... O-O {[%clk 0:02:56.7]} 12. Nc3 {[%clk 0:02:34]} 12... Be6 {[%clk
0:02:55.5]} 13. Be3 {[%clk 0:02:32.7]} 13... Rfd8 {[%clk 0:02:54.2]} 14. Bb6
{[%clk 0:02:29.3]} 14... Rd7 {[%clk 0:02:53.6]} 15. Qe2 {[%clk 0:02:24.2]} 15...
d5 {[%clk 0:02:53.4]} 16. exd5 {[%clk 0:02:22.7]} 16... Nxd5 {[%clk 0:02:52.8]}
17. Nxd5 {[%clk 0:02:21.8]} 17... Bxd5 {[%clk 0:02:50.2]} 18. a3 {[%clk
0:02:04.2]} 18... Re8 {[%clk 0:02:48.9]} 19. Rad1 {[%clk 0:01:58.2]} 19... Qh4
{[%clk 0:02:40.6]} 20. Bf2 {[%clk 0:01:51.7]} 20... Qd8 {[%clk 0:02:32]} 21. Rd2
{[%clk 0:01:41.5]} 21... e4 {[%clk 0:02:28.9]} 22. fxe4 {[%clk 0:01:41]} 22...
Bxe4 {[%clk 0:02:28.8]} 23. Qh5 {[%clk 0:01:22.5]} 23... Bg6 {[%clk 0:02:21.3]}
24. Bxg6 {[%clk 0:01:01.3]} 24... fxg6 {[%clk 0:02:20.9]} 25. Rxd7 {[%clk
0:00:56.3]} 25... gxh5 {[%clk 0:02:17.6]} 26. Rxd8 {[%clk 0:00:56.2]} 26... Rxd8
{[%clk 0:02:17.1]} 27. Be3 {[%clk 0:00:56.1]} 27... Rd5 {[%clk 0:02:11.4]} 28.
Re1 {[%clk 0:00:51.3]} 28... Rf5 {[%clk 0:02:07.3]} 29. Re2 {[%clk 0:00:48.2]}
29... Kf7 {[%clk 0:02:05.5]} 30. g3 {[%clk 0:00:46]} 30... Re5 {[%clk
0:01:59.6]} 31. Rf2+ {[%clk 0:00:43.6]} 31... Ke6 {[%clk 0:01:59.5]} 32. Bf4
{[%clk 0:00:43.9]} 32... Re4 {[%clk 0:01:57.9]} 33. c3 {[%clk 0:00:40.4]} 33...
Ne7 {[%clk 0:01:56.5]} 34. Rd2 {[%clk 0:00:34.6]} 34... Nd5 {[%clk 0:01:55.7]}
35. Bb8 {[%clk 0:00:33.8]} 35... b5 {[%clk 0:01:50]} 36. Kf2 {[%clk 0:00:32.3]}
36... Rc4 {[%clk 0:01:42.3]} 37. Re2+ {[%clk 0:00:31.5]} 37... Kd7 {[%clk
0:01:41.1]} 38. Be5 {[%clk 0:00:29.5]} 38... g5 {[%clk 0:01:38.4]} 39. Bg7
{[%clk 0:00:27.9]} 39... h4 {[%clk 0:01:37.2]} 40. Bxh6 {[%clk 0:00:26.6]} 40...
hxg3+ {[%clk 0:01:37.2]} 41. hxg3 {[%clk 0:00:27.5]} 41... g4 {[%clk 0:01:37.3]}
42. Bg5 {[%clk 0:00:25.4]} 42... a5 {[%clk 0:01:36.6]} 43. Rd2 {[%clk 0:00:24]}
43... Ke6 {[%clk 0:01:35.7]} 44. Re2+ {[%clk 0:00:23.4]} 44... Kd7 {[%clk
0:01:35.5]} 45. Re5 {[%clk 0:00:20.9]} 45... Kd6 {[%clk 0:01:29.8]} 46. Re8
{[%clk 0:00:16.9]} 46... b4 {[%clk 0:01:24.2]} 47. Rd8+ {[%clk 0:00:16.6]} 47...
Kc6 {[%clk 0:01:23.3]} 48. Rc8+ {[%clk 0:00:10]} 48... Kb5 {[%clk 0:01:23.1]}
49. Rxc4 {[%clk 0:00:08.5]} 49... Kxc4 {[%clk 0:01:22.4]} 50. cxb4 {[%clk
0:00:08.4]} 50... axb4 {[%clk 0:01:22.2]} 51. axb4 {[%clk 0:00:07.3]} 51... Kxb4
{[%clk 0:01:22.3]} 52. Ke2 {[%clk 0:00:06]} 52... Kc4 {[%clk 0:01:22.1]} 53. Kd2
{[%clk 0:00:06.3]} 53... Kd4 {[%clk 0:01:17.9]} 54. Kc2 {[%clk 0:00:02.5]} 54...
Ke4 {[%clk 0:01:11.7]} 55. b3 {[%clk 0:00:02.1]} 55... Kf3 {[%clk 0:01:11.8]}
56. Bh4 {[%clk 0:00:02.2]} 56... Ke4 {[%clk 0:01:05.7]} 57. Kb2 {[%clk
0:00:01.5]} 57... Kd4 {[%clk 0:01:03.5]} 58. Ka3 {[%clk 0:00:01.8]} 58... Kc5
{[%clk 0:01:03.6]} 59. Ka4 {[%clk 0:00:02.2]} 59... Nc3+ {[%clk 0:01:02.8]} 60.
Ka5 {[%clk 0:00:02.1]} 60... Nb5 {[%clk 0:01:00.8]} 61. b4+ {[%clk 0:00:02.2]}
61... Kc4 {[%clk 0:01:01]} 62. Be7 {[%clk 0:00:01.8]} 62... Nd4 {[%clk
0:00:59.9]} 0-1

[Event "Late-Titled-Tuesday-Blitz-June-04-2024"]
[Site "Chess.com"]
[Date "2024.06.04"]
[Round "7"]
[White "Eloist"]
[Black "lluiss"]
[Result "0-1"]
[WhiteElo "2413"]
[BlackElo "2219"]
[TimeControl "180+1"]
[EndTime "15:15:54 PDT"]
[Termination "lluiss won by resignation"]

1. e4 {[%clk 0:02:58.9]} 1... c5 {[%clk 0:02:55.2]} 2. Nf3 {[%clk 0:02:58.2]}
2... d6 {[%clk 0:02:53.1]} 3. Bb5+ {[%clk 0:02:57.4]} 3... Bd7 {[%clk
0:02:51.3]} 4. Bxd7+ {[%clk 0:02:57.2]} 4... Nxd7 {[%clk 0:02:52.2]} 5. O-O
{[%clk 0:02:55.8]} 5... Ngf6 {[%clk 0:02:50.7]} 6. Qe2 {[%clk 0:02:55.6]} 6...
e6 {[%clk 0:02:49.9]} 7. d4 {[%clk 0:02:54.5]} 7... cxd4 {[%clk 0:02:49.3]} 8.
Nxd4 {[%clk 0:02:55.4]} 8... a6 {[%clk 0:02:49.7]} 9. c4 {[%clk 0:02:54.9]} 9...
g6 {[%clk 0:02:47.9]} 10. Nc3 {[%clk 0:02:54.5]} 10... Bg7 {[%clk 0:02:48.1]}
11. Be3 {[%clk 0:02:50.3]} 11... O-O {[%clk 0:02:47.7]} 12. Rad1 {[%clk
0:02:48]} 12... Qc7 {[%clk 0:02:46.5]} 13. Rc1 {[%clk 0:02:38.3]} 13... Rac8
{[%clk 0:02:41.5]} 14. b3 {[%clk 0:02:35.5]} 14... Qa5 {[%clk 0:02:41.5]} 15. f4
{[%clk 0:02:20.7]} 15... e5 {[%clk 0:02:16.5]} 16. fxe5 {[%clk 0:02:16]} 16...
Nxe5 {[%clk 0:02:16.5]} 17. Bg5 {[%clk 0:02:09.4]} 17... Neg4 {[%clk 0:02:04.6]}
18. h3 {[%clk 0:02:00.4]} 18... Qxg5 {[%clk 0:02:01.3]} 19. hxg4 {[%clk
0:01:57.2]} 19... Nxg4 {[%clk 0:02:01.3]} 20. Nf3 {[%clk 0:01:56.1]} 20... Qh5
{[%clk 0:01:45.1]} 21. Nd5 {[%clk 0:01:35.8]} 21... Be5 {[%clk 0:01:36.2]} 22.
g3 {[%clk 0:01:28.3]} 22... Bxg3 {[%clk 0:01:22.3]} 23. Ne7+ {[%clk 0:01:22.8]}
23... Kg7 {[%clk 0:01:19.8]} 24. Nxc8 {[%clk 0:01:21.7]} 24... Rxc8 {[%clk
0:01:13.9]} 25. Kg2 {[%clk 0:01:14.9]} 25... Bf4 {[%clk 0:01:09]} 26. Rh1 {[%clk
0:01:11.5]} 26... Ne3+ {[%clk 0:01:04]} 27. Kf2 {[%clk 0:01:03.1]} 27... Qc5
{[%clk 0:01:03.2]} 28. Qb2+ {[%clk 0:00:54.6]} 28... Be5 {[%clk 0:00:53.5]} 29.
b4 {[%clk 0:00:42]} 29... Ng4+ {[%clk 0:00:34.8]} 30. Kg2 {[%clk 0:00:39.8]}
30... Qe3 {[%clk 0:00:30.7]} 31. Nxe5 {[%clk 0:00:35.6]} 31... dxe5 {[%clk
0:00:29.7]} 32. Rce1 {[%clk 0:00:28.4]} 32... Qf4 {[%clk 0:00:28.1]} 33. Qe2
{[%clk 0:00:19.2]} 33... Rd8 {[%clk 0:00:20]} 34. Ref1 {[%clk 0:00:17.3]} 34...
Ne3+ {[%clk 0:00:12.1]} 35. Kh3 {[%clk 0:00:11]} 35... Nxf1 {[%clk 0:00:05.2]}
36. Rxf1 {[%clk 0:00:09.2]} 36... Qh6+ {[%clk 0:00:05.2]} 37. Kg2 {[%clk
0:00:09.2]} 37... Rd2 {[%clk 0:00:05.1]} 0-1

[Event "Late-Titled-Tuesday-Blitz-June-04-2024"]
[Site "Chess.com"]
[Date "2024.06.04"]
[Round "7"]
[White "LoonsDeKoeben"]
[Black "Supelyel"]
[Result "0-1"]
[WhiteElo "2290"]
[BlackElo "2421"]
[TimeControl "180+1"]
[EndTime "15:15:55 PDT"]
[Termination "Supelyel won on time"]

1. Nf3 {[%clk 0:03:00]} 1... d6 {[%clk 0:02:56.3]} 2. e4 {[%clk 0:02:58.2]} 2...
Nf6 {[%clk 0:02:55.6]} 3. Nc3 {[%clk 0:02:57.9]} 3... e5 {[%clk 0:02:55.5]} 4.
d4 {[%clk 0:02:56.8]} 4... Nbd7 {[%clk 0:02:54.8]} 5. Rg1 {[%clk 0:02:49.8]}
5... Be7 {[%clk 0:02:50.3]} 6. g4 {[%clk 0:02:49.4]} 6... h6 {[%clk 0:02:38.1]}
7. h4 {[%clk 0:02:41.1]} 7... exd4 {[%clk 0:02:37.8]} 8. Nxd4 {[%clk 0:02:31.6]}
8... Nc5 {[%clk 0:02:35.7]} 9. Qf3 {[%clk 0:02:24.5]} 9... c6 {[%clk 0:02:19.5]}
10. Bf4 {[%clk 0:02:06.8]} 10... Qa5 {[%clk 0:01:34.3]} 11. O-O-O {[%clk
0:01:55.6]} 11... h5 {[%clk 0:01:34.6]} 12. g5 {[%clk 0:01:36.9]} 12... Bg4
{[%clk 0:01:33.9]} 13. Qe3 {[%clk 0:01:35.8]} 13... Bxd1 {[%clk 0:01:20.4]} 14.
gxf6 {[%clk 0:01:35.8]} 14... Bxf6 {[%clk 0:01:20]} 15. Kxd1 {[%clk 0:01:23.5]}
15... O-O-O {[%clk 0:01:12.4]} 16. Bh3+ {[%clk 0:01:22.1]} 16... Kb8 {[%clk
0:01:11.1]} 17. Nb3 {[%clk 0:01:22.2]} 17... Nxb3 {[%clk 0:01:08.7]} 18. axb3
{[%clk 0:01:22.3]} 18... Bxc3 {[%clk 0:00:59.7]} 19. bxc3 {[%clk 0:01:16.1]}
19... Qa1+ {[%clk 0:00:59.3]} 20. Qc1 {[%clk 0:01:16.1]} 20... Qxc3 {[%clk
0:00:59.6]} 21. Bg2 {[%clk 0:00:43.3]} 21... Qd4+ {[%clk 0:00:56]} 22. Qd2
{[%clk 0:00:43]} 22... Qa1+ {[%clk 0:00:56.2]} 23. Qc1 {[%clk 0:00:43]} 23...
Qd4+ {[%clk 0:00:56.3]} 24. Ke2 {[%clk 0:00:40.7]} 24... f5 {[%clk 0:00:53.4]}
25. Qe3 {[%clk 0:00:32.3]} 25... Qb2 {[%clk 0:00:37.3]} 26. Qd3 {[%clk
0:00:29.1]} 26... fxe4 {[%clk 0:00:34.8]} 27. Bxe4 {[%clk 0:00:27.8]} 27... Rhe8
{[%clk 0:00:26.1]} 28. Kd2 {[%clk 0:00:19.4]} 28... Ka8 {[%clk 0:00:24.5]} 29.
Be3 {[%clk 0:00:15.5]} 29... d5 {[%clk 0:00:22.9]} 30. Bg6 {[%clk 0:00:16.1]}
30... d4 {[%clk 0:00:21.8]} 31. Bg5 {[%clk 0:00:12.3]} 31... Rf8 {[%clk
0:00:20.6]} 32. Bxd8 {[%clk 0:00:08.9]} 32... Rxf2+ {[%clk 0:00:16.5]} 33. Ke1
{[%clk 0:00:09.3]} 33... Rh2 {[%clk 0:00:16.1]} 34. Bg5 {[%clk 0:00:05.6]} 34...
Qa1+ {[%clk 0:00:11]} 35. Qd1 {[%clk 0:00:04.6]} 35... Qc3+ {[%clk 0:00:11.2]}
36. Bd2 {[%clk 0:00:03.7]} 36... Qh3 {[%clk 0:00:07.4]} 37. Rf1 {[%clk
0:00:02.4]} 37... Qxh4+ {[%clk 0:00:07.5]} 0-1